[Event "44th Chess Olympiad Open 2022"]
[Site "Chennai"]
[Date "2022.07.30"]
[Round "2.56"]
[White "Damianou, Ioannis"]
[Black "Strovsky, Mikhail"]
[Result "1/2-1/2"]
[ECO "D32"]
[WhiteElo "2153"]
[BlackElo "2158"]
[Annotator "TA"]
[PlyCount "118"]
[EventDate "2022.07.29"]
[EventType "team-tourn"]
[EventCountry "IND"]
[SourceTitle "playchess.com"]
[Source "ChessBase"]
[SourceQuality "1"]
[WhiteTeam "Cyprus"]
[BlackTeam "Togo"]
[WhiteTeamCountry "CYP"]
[BlackTeamCountry "TOG"]
[TimeControl "40/5400+30:1800+30"]

{[%evp 22,118,0,0,16,12,51,20,43,19,18,7,13,5,21,16,19,11,18,15,16,0,0,-12,-9,-10,-14,-12,71,73,71,62,98,88,175,171,160,175,161,158,153,153,153,153,153,158,162,154,224,218,234,234,275,234,242,236,236,236,236,135,135,135,135,150,651,637,12702,12702,12114,12013,12562,12555,11872,11514,6518,4710,11907,10087,12657,12505,6333,6245,12261,5700,29966,29966,29971,29970,29972,29973,29972,29971,4614,0,0,0,0,0,0]} 1. c4 {[%emt 0:00:08]} Nf6 {[%emt 0:00:42]} 2. Nf3 {[%emt 0:00:20]} e6 {[%emt 0:00:17]} 3. e3 {[%emt 0:00:15]} d5 {[%emt 0:00:23]} 4. Nc3 {[%emt 0:01:09]} c5 {[%emt 0:01:07]} 5. d4 {[%emt 0:00:14]} Nc6 {[%emt 0:00:48]} 6. cxd5 {[%emt 0:01:11]} exd5 {[%emt 0:00:37]} 7. Bb5 {[%emt 0:00:19]} a6 {[%emt 0:04:14]} 8. Bxc6+ {[%emt 0:03:01]} bxc6 {[%emt 0:00:28]} 9. O-O {[%emt 0:15:11]} Be7 {[%emt 0:02:21]} 10. h3 {[%emt 0:03:17]} O-O {[%emt 0:00:44]} 11. dxc5 {[%emt 0:01:47]} Bxc5 {[%emt 0:00:55]} 12. b3 {[%emt 0:00:09]} Be6 {[%emt 0:09:45] D32: Tarrasch Defence: Sidelines and lines without g3.} 13. Bb2 {[%emt 0:03:27] [#]} Qa5 $146 {[%emt 0:18:48]} ({Predecessor:} 13... Bd6 14. Rc1 c5 15. Ne2 Qe7 16. Qc2 Ne4 17. Rfd1 Rfd8 18. Nc3 Ng5 19. Qe2 Nxf3+ 20. Qxf3 {1-0 (31) Ornstein,A (2440)-Wedberg,T (2460) Stockholm 1994}) 14. a3 {[%emt 0:05:30] Strongly threatening b4.} Be7 {[%emt 0:01:33]} 15. Nd4 {[%emt 0:14:19]} (15. b4 $5 {[%cal Rb4a5]} Qc7 16. Na4 $11) 15... c5 {[%emt 0:04:36]} 16. b4 {[%emt 0:07:57]} cxb4 {[%emt 0:03:58]} 17. Nc6 {[%emt 0:00:07]} Qc7 {[%emt 0:02:25]} 18. Nxb4 {[%emt 0:00:06][%cal Bc6b4,Bb4d3,Bd3e5][%mdl 32]} Qb7 {[%emt 0:04:33]} 19. Ne2 {[%emt 0:13:36]} a5 {[%emt 0:01:09]} 20. Nd3 {[%emt 0:00:06]} Rfc8 {[%emt 0:04:06]} 21. Nd4 {[%emt 0:01:34]} Bd7 {[%emt 0:00:44]} 22. Rb1 {[%emt 0:04:05]} Qa6 {[%emt 0:02:58]} 23. Ne5 {[%emt 0:00:25]} Be8 {[%emt 0:00:56]} 24. Nf5 {[%emt 0:03:23] Pair of Knights!} Qe6 {[%emt 0:01:41]} (24... Bf8 $1 $11) 25. Nxe7+ $16 {[%emt 0:03:38]} Qxe7 {[%emt 0:00:07]} 26. Qd4 {[%emt 0:00:12]} Ra6 {[%emt 0:01:15]} 27. Ng4 {[%emt 0:03:13] Black must now prevent Nxf6+. White is more active.} Bb5 {[%emt 0:14:49]} (27... Qe4 $16) 28. Nxf6+ $18 {[%emt 0:01:53]} Rxf6 {[%emt 0:01:02]} 29. Qg4 $36 {[%emt 0:00:16][%mdl 2048] Keeping Black busy.} (29. Qxd5 $6 Bxf1 30. Bxf6 Bxg2 $14) 29... Qe6 {[%emt 0:01:43]} 30. Bxf6 {[%emt 0:04:25][%csl Gf6][%cal Rg4g7]} Qxg4 {[%emt 0:00:32]} 31. hxg4 {[%emt 0:00:07]} Bxf1 {[%emt 0:00:19]} 32. Kxf1 {[%emt 0:00:25]} (32. Rxf1 $6 gxf6 33. Rb1 Rc3 $14) 32... gxf6 {[%emt 0:00:08][%mdl 4096] Endgame KR-KR} 33. Rb5 {[%emt 0:00:06][%csl LRa5,LRd5]} a4 {[%emt 0:00:44]} 34. Rb4 $1 {[%emt 0:00:53]} ({Resist} 34. Rxd5 $6 Rc3 $14) 34... Rc2 {[%emt 0:00:47]} (34... Ra8 $16 {is a better defense.} 35. Ke2 Kg7) 35. Rxa4 {[%emt 0:01:35]} Ra2 {[%emt 0:00:19]} 36. g3 {[%emt 0:02:35]} Kf8 {[%emt 0:00:11]} 37. Ra5 {[%emt 0:03:43]} Ke7 {[%emt 0:00:35]} 38. Rxd5 {[%emt 0:01:39]} Rxa3 {[%emt 0:00:10]} 39. Rh5 {[%emt 0:00:55]} Ra4 {[%emt 0:00:08] [#]} 40. f3 {[%emt 0:00:46]} ({Don't play} 40. Rxh7 $6 Rxg4 41. Rh4 Rg5) (40. f4 $1 $18) 40... Ra1+ {[%emt 0:00:12]} 41. Ke2 {[%emt 0:03:40]} Ra2+ {[%emt 0:00:11]} 42. Kd3 {[%emt 0:00:25]} Ra3+ $2 {[%emt 0:00:40]} (42... Rg2 $16 43. Rh3 (43. Rxh7 Rxg3 44. Ke4 Rg2 $16) 43... Kf8) 43. Ke4 {[%emt 0:04:15]} Ra4+ {[%emt 0:00:28] [#]} 44. Kf5 $1 {[%emt 0:00:15]} Ra3 {[%emt 0:00:39]} 45. Kf4 {[%emt 0:00:06]} Ra4+ {[%emt 0:00:18]} 46. e4 {[%emt 0:00:08]} Ra3 {[%emt 0:00:08]} 47. Rxh7 {[%emt 0:00:17]} Rb3 {[%emt 0:00:14]} 48. Rh5 {[%emt 0:01:04] Rf5 is the strong threat.} Ra3 {[%emt 0:00:12]} 49. Rf5 {[%emt 0:00:59]} Ra1 {[%emt 0:00:49]} 50. g5 {[%emt 0:00:24]} fxg5+ {[%emt 0:00:04]} 51. Kxg5 {[%emt 0:00:05]} Rg1 {[%emt 0:00:12]} 52. g4 {[%emt 0:00:07] White wants to mate with f4.} Rg3 {[%emt 0:00:13]} 53. f4 {[%emt 0:00:36]} Rg1 {[%emt 0:00:34]} 54. Ra5 {[%emt 0:00:41]} Rh1 {[%emt 0:00:09]} 55. Ra7+ {[%emt 0:00:54]} Kf8 {[%emt 0:00:08]} 56. e5 {[%emt 0:00:23]} Rh7 {[%emt 0:00:29]} 57. f5 $2 {[%emt 0:00:43]} (57. Ra8+ $18 Ke7 58. f5) 57... f6+ $1 $11 {[%emt 0:00:03][%mdl 64] Discovered Attack. The position is equal.} 58. Kxf6 {[%emt 0:00:11][%cal Ra7a8]} Rxa7 {[%emt 0:00:02]} 59. g5 {[%emt 0:01:12]} Rf7+ {[%emt 0:01:37] Weighted Error Value: White=0.07 (flawless) /Black=0.65} 1/2-1/2

[Event "44th Chess Olympiad Open 2022"]
[Site "Chennai"]
[Date "2022.07.30"]
[Round "2.56"]
[White "Tchouka, Yakini"]
[Black "Antoniou, Rafail"]
[Result "0-1"]
[ECO "B45"]
[WhiteElo "1934"]
[BlackElo "1817"]
[Annotator "TA"]
[PlyCount "36"]
[EventDate "2022.07.29"]
[EventType "team-tourn"]
[EventCountry "IND"]
[SourceTitle "playchess.com"]
[Source "ChessBase"]
[SourceQuality "1"]
[WhiteTeam "Togo"]
[BlackTeam "Cyprus"]
[WhiteTeamCountry "TOG"]
[BlackTeamCountry "CYP"]
[TimeControl "40/5400+30:1800+30"]

{[%evp 19,36,-32,-25,-30,-19,-28,-34,-22,-15,-34,-39,-63,-59,-294,-291,-29983,-457,-29984,-29985]} 1. e4 {[%emt 0:00:04]} c5 {[%emt 0:00:10]} 2. Nf3 {[%emt 0:00:06][%cal Bg1f3,Bf3d4,Bd4b5,Bb5d6,Bd6f5][%mdl 32]} e6 {[%emt 0:00:21]} 3. d4 {[%emt 0:00:12]} cxd4 {[%emt 0:00:31]} 4. Nxd4 {[%emt 0:00:09]} Nf6 {[%emt 0:00:05]} 5. Nc3 {[%emt 0:00:22]} Nc6 {[%emt 0:00:18]} 6. Ndb5 {[%emt 0:01:42]} Bb4 {[%emt 0:00:46]} 7. Nd6+ {[%emt 0:04:11]} Ke7 {[%emt 0:00:02]} 8. Bf4 {[%emt 0:15:24]} e5 {[%emt 0:03:03]} 9. Nf5+ {[%emt 0:00:23]} Kf8 {[%emt 0:00:07]} 10. Bg5 {[%emt 0:13:09]} d5 {[%emt 0:02:09] And now ...d4 would win.} 11. Bxf6 {[%emt 0:07:49] B45: Sicilian Four Knights.} Qxf6 {[%emt 0:00:30]} 12. Qxd5 {[%emt 0:13:03]} Bxf5 {[%emt 0:04:18]} 13. exf5 {[%emt 0:00:13] [#] Black is slightly better.} g6 $146 {[%emt 0:03:39]} ({Predecessor:} 13... Rd8 14. Qe4 Rd4 15. Qe3 Qxf5 16. Bd3 Qd7 17. O-O h5 18. Ne2 Rd6 19. Rad1 Rhh6 {0-1 (70) Priyanka,K (2218)-Serikbay,A (2228) Chess.com INT 2021}) 14. fxg6 {[%emt 0:04:31]} hxg6 {[%emt 0:00:21] Hoping for ...Qe7.} 15. a3 {[%emt 0:00:02]} Rd8 {[%emt 0:13:57][%mdl 1024] Black has compensation.} 16. Qc4 {[%emt 0:02:40]} ({White should try} 16. Qf3 $1 $15 Qxf3 17. gxf3) 16... Rh4 $19 {[%emt 0:05:00][%cal Bh8h4,Bh4e4,Be4e2][%mdl 32]} 17. Qb3 {[%emt 0:01:08]} (17. g4 $19 Qf3 18. axb4 Qxh1 19. b5) 17... Re4+ {[%emt 0:02:07]} 18. Be2 {[%emt 0:00:37] [#]} Rxe2+ $1 {[%emt 0:00:03][%mdl 576] Decoy. White did not feel at home in the position after the opening.  Weighted Error Value: White=1.70/Black=0.01 (flawless)} 0-1

[Event "44th Chess Olympiad Open 2022"]
[Site "Chennai"]
[Date "2022.07.30"]
[Round "2.56"]
[White "Egbe, Kossi Thierry"]
[Black "Isaakidis, Alexandros"]
[Result "0-1"]
[ECO "B61"]
[WhiteElo "1703"]
[BlackElo "2165"]
[Annotator "TA"]
[PlyCount "31"]
[EventDate "2022.07.29"]
[EventType "team-tourn"]
[EventCountry "IND"]
[SourceTitle "playchess.com"]
[Source "ChessBase"]
[SourceQuality "1"]
[WhiteTeam "Togo"]
[BlackTeam "Cyprus"]
[WhiteTeamCountry "TOG"]
[BlackTeamCountry "CYP"]
[TimeControl "40/5400+30:1800+30"]

{[%evp 15,31,-22,29,0,0,-166,-164,-2037,-162,-163,1144,-175,-173,-162,-165,-179,-191,-183]} 1. e4 {[%emt 0:00:04]} c5 {[%emt 0:00:06]} 2. Nf3 {[%emt 0:00:52]} Nc6 {[%emt 0:00:12]} 3. d4 {[%emt 0:01:05]} cxd4 {[%emt 0:00:08]} 4. Nxd4 {[%emt 0:00:22]} Nf6 {[%emt 0:00:07]} 5. Nc3 {[%emt 0:00:16]} d6 {[%emt 0:00:07][%cal Bd7d6,Bd6e5][%mdl 32]} 6. Bg5 {[%emt 0:00:44]} e6 {[%emt 0:00:08]} 7. Qd2 {[%emt 0:02:28]} a6 {[%emt 0:00:07]} 8. f4 {[%emt 0:01:00]} Bd7 {[%emt 0:00:35]} ({Black should play} 8... h6 9. Nxc6 bxc6 10. Bxf6 Qxf6) 9. Nxc6 {[%emt 0:05:11] B61: Sicilian: Richter-Rauzer: 6...Bd7 7 Qd2.} Bxc6 {[%emt 0:01:50]} 10. e5 $2 {[%emt 0:00:16] [#]} (10. Bxf6 $11 {and White is okay.} Qxf6 11. O-O-O) 10... dxe5 $146 {[%emt 0:00:18]} ({Predecessor:} 10... h6 11. Bh4 dxe5 12. Qxd8+ Rxd8 13. fxe5 g5 14. exf6 gxh4 15. Bd3 Bxg2 16. Rg1 Bf3 {1-0 (28) Wacker,F (1838)-Lang,G Lambsheim 2017}) 11. Qd4 {[%emt 0:00:34]} (11. fxe5 Qxd2+ 12. Kxd2) 11... Qd6 $2 (11... Qxd4 12. Bxf6 gxf6) 12. Qxd6 {[%emt 0:00:30]} Rc8 {[%emt 0:00:08][%mdl 8192] Inhibits Qc7.} (12... Bxd6 $19 13. O-O-O Bc7) 13. Qd8+ $4 {[%mdl 8192]} Rxd8 {[%emt 0:01:01] Black is clearly better.} 14. fxe5 {[%emt 0:00:44]} h6 {[%emt 0:00:06]} 15. Bxh6 gxh6 {[%emt 0:00:00]} 16. exf6 {[%emt 0:26:47] Weighted Error Value: White=2.11/Black=1.33} 0-1

[Event "44th Chess Olympiad Open 2022"]
[Site "Chennai"]
[Date "2022.07.30"]
[Round "2.57"]
[White "Sultan, Ibrahim"]
[Black "Wane, Al Hassane"]
[Result "0-1"]
[ECO "D53"]
[WhiteElo "2108"]
[BlackElo "1750"]
[Annotator "TA"]
[PlyCount "106"]
[EventDate "2022.07.29"]
[EventType "team-tourn"]
[EventCountry "IND"]
[SourceTitle "playchess.com"]
[Source "ChessBase"]
[SourceQuality "1"]
[WhiteTeam "United Arab Emirates"]
[BlackTeam "Senegal"]
[WhiteTeamCountry "UAE"]
[BlackTeamCountry "SEN"]
[TimeControl "40/5400+30:1800+30"]

{[%evp 23,106,0,0,0,0,-25,0,0,0,0,38,-46,-30,-56,0,-56,85,81,85,68,131,110,125,83,114,0,0,0,0,-43,-61,-87,0,-549,-468,-462,-468,-517,-504,-481,-439,-424,-419,-383,-338,-676,-668,-564,-456,-531,-392,-953,-769,-1368,-385,-1081,-1050,-5357,-1189,-29988,-1193,-1170,-1135,-1126,-1067,-1013,0,-5104,-4327,-922,-5202,-2234,-2125,-29968,-29966,-29951,-29949,-29992,-29993,-29994,-29990,-29990,-29991,-29991,-29992]} 1. d4 {[%emt 0:00:24]} d5 {[%emt 0:00:10]} 2. c4 {[%emt 0:00:37]} e6 {[%emt 0:00:11]} 3. Nc3 {[%emt 0:00:04]} Nf6 {[%emt 0:00:16]} 4. Nf3 {[%emt 0:00:06]} Nbd7 {[%emt 0:01:07]} 5. Bg5 {[%emt 0:00:09]} Be7 {[%emt 0:01:01]} 6. e3 {[%emt 0:01:26]} c6 {[%emt 0:00:18]} 7. Qc2 {[%emt 0:01:08]} Ne4 {[%emt 0:06:01]} 8. Bxe7 {[%emt 0:05:19]} Qxe7 {[%emt 0:02:28]} 9. Nxe4 {[%emt 0:00:04]} dxe4 {[%emt 0:00:32]} 10. Qxe4 {[%emt 0:01:33]} Qb4+ {[%emt 0:00:30]} 11. Nd2 {[%emt 0:00:05]} Qxb2 {[%emt 0:01:13]} 12. Rb1 {[%emt 0:00:04]} Qxa2 {[%emt 0:04:03]} 13. Bd3 {[%emt 0:03:00] D53: Queen's Gambit Declined: 4 Bg5 Be7: Early deviations.} Qa5 {[%emt 0:02:01]} 14. Ke2 {[%emt 0:01:17]} Nf6 {[%emt 0:00:58]} 15. Qf4 {[%emt 0:02:33] [#] The position is equal.} O-O $146 {[%emt 0:05:22]} ({Predecessor:} 15... Qd8 16. h3 h6 17. g4 Qe7 18. Qe5 Kf8 19. Rb2 Nd7 20. Qc7 Nb6 21. Qxe7+ Kxe7 {1-0 (36) Hogberg,J-Bohlin,I Sweden 1990}) 16. Ra1 {[%emt 0:02:06]} Qh5+ {[%emt 0:01:17]} 17. f3 {[%emt 0:00:12]} (17. Nf3 $1 $14) 17... Re8 $15 {[%emt 0:02:54]} 18. g4 {[%emt 0:00:21]} Qh4 {[%emt 0:09:33]} (18... e5 $15 19. Qxe5 (19. gxh5 exf4 20. e4 Nxh5 $15) (19. Qxf6 Qh3 $17) 19... Qxe5 20. dxe5 Rxe5) 19. Ra5 {[%emt 0:00:22]} (19. g5 $11 Qxf4 20. exf4) 19... e5 {[%emt 0:07:59]} (19... b6 $15 {keeps the upper hand.} 20. Ra2 e5 21. dxe5 Nd7) 20. Rxe5 $16 {[%emt 0:07:33]} Bd7 {[%emt 0:04:37]} 21. Ra1 {[%emt 0:19:43]} b5 {[%emt 0:07:20]} (21... b6 $14) 22. Ra5 {[%emt 0:07:51]} (22. cxb5 $6 Nd5 23. Qg3 Qxg3 24. hxg3 Rxe5 25. dxe5 cxb5 $14) 22... bxc4 {[%emt 0:08:50]} 23. Nxc4 {[%emt 0:01:03]} Nd5 {[%emt 0:04:41]} 24. Raxd5 {[%emt 0:00:06]} ({White should try} 24. Qg3 $16 Qd8 25. Rxe8+ Bxe8 26. g5) 24... cxd5 $11 {[%emt 0:03:28]} 25. Rxd5 {[%emt 0:01:10]} Qe7 {[%emt 0:01:49]} 26. Nd6 {[%emt 0:08:15][%cal Od5e5]} Reb8 {[%emt 0:01:50]} 27. Kf2 {[%emt 0:21:32][%cal Od5e5]} Qh4+ {[%emt 0:05:10] The board is on fire.} ({Black should play} 27... Be6 $17 28. Rc5 Qh4+ 29. Qg3 Rb2+ 30. Kg1 Qxg3+ 31. hxg3 Rd2) 28. Kg1 $2 {[%emt 0:08:59][%mdl 8192] White is now going downhill.} (28. Kf1 $1 $11 Qf6 29. Qxf6 gxf6 30. Ne4) 28... Qe1+ {[%emt 0:03:08]} 29. Kg2 {[%emt 0:00:08][%cal Od3h7] White wants to mate with Bxh7+!} Be6 $1 {[%emt 0:01:28]} 30. Bc4 {[%emt 0:03:13]} Rb2+ {[%emt 0:03:12]} ({Not} 30... Bxd5 $2 31. Bxd5 Rb2+ 32. Kh3 Qf1+ 33. Kh4 Qf2+ 34. Kh3 Qg2+ 35. Kh4 $19) 31. Kh3 {[%emt 0:00:05]} Bxd5 {[%emt 0:00:47]} 32. Bxd5 {[%emt 0:00:05]} Qf1+ {[%emt 0:00:48]} (32... Rf8 33. Nxf7 Qf1+ 34. Kh4 Rxh2+ 35. Kg5 Rh5+ 36. Kxh5 $18) 33. Kh4 {[%emt 0:00:04] [#]} Qf2+ $1 {[%emt 0:01:52]} 34. Kg5 $2 {[%emt 0:00:05]} (34. Kh3 Rf8 35. Nxf7 Qg2+ 36. Kh4 Qxh2+ 37. Qxh2 Rxh2+ 38. Kg3) 34... h6+ $19 {[%emt 0:01:07]} 35. Kf5 {[%emt 0:00:04]} Rd8 {[%emt 0:02:42] Strongly threatening ...Rb6.} 36. Bxf7+ {[%emt 0:01:03]} Kf8 {[%emt 0:01:09]} 37. Qe4 $2 {[%emt 0:06:40]} (37. Kg6 Qxh2 38. Qf5 Rxd6+ 39. Be6+ Ke7 40. d5) 37... Rbb8 {[%emt 0:01:44]} 38. Qc6 {[%emt 0:00:30]} Qxh2 $2 {[%emt 0:02:16]} (38... Rb6 39. Qe4 g6+ 40. Ke5 Rdxd6) 39. f4 $2 {[%emt 0:00:29]} (39. Nc4 Rbc8 40. Qe6 Qc2+ 41. Kf4 Qh2+ 42. Kf5 Qc2+ 43. Kf4 Qh2+ 44. Kf5) 39... Rb6 {[%emt 0:01:26]} 40. Qc7 {[%emt 0:00:08]} Rbxd6 {[%emt 0:00:02]} (40... Rdxd6 $142 41. Ke5 Qg3) 41. Bc4 {[%emt 0:30:13]} Rf6+ {[%emt 0:30:44]} (41... Qc2+ $142 42. Ke5 {[#]} Rd5+ $3 {[%mdl 512]} 43. Bxd5 Qxc7+ 44. Ke4 Qe7+ 45. Kf3 Rxd5 46. f5 Rb5 47. f6 Qxf6+ 48. Ke2 Rb3 49. d5 Qc3 50. Kf3 Qxe3+ 51. Kg2 Qe2+ 52. Kh1 Rb1#) 42. Ke4 {[%emt 0:00:46]} Re8+ {[%emt 0:01:52]} 43. Kd3 {[%emt 0:00:02]} g5 {[%emt 0:00:00]} 44. Qc5+ {[%emt 0:00:00]} Re7 $2 {[%emt 0:00:00]} (44... Kg7 $19 {White must now prevent ...Qf2.} 45. Qc7+ Kh8) 45. fxg5 $2 {[%emt 0:00:00][%mdl 8192]} (45. Qc8+ $11 Re8 46. Qc5+ Kg7 47. Qc7+ Kh8 48. Bb5) 45... hxg5 {[%emt 0:00:00]} 46. Qc8+ {[%emt 0:00:00]} Re8 {[%emt 0:00:00]} ({Don't play} 46... Kg7 47. Qg8+ Kh6 48. Qh8+ Kg6 49. Qxh2 $18) 47. Qc5+ {[%emt 0:00:00]} Qd6 {[%emt 0:00:00]} 48. Qxg5 {[%emt 0:00:00]} Qa3+ {[%emt 0:00:00] Black mates.} 49. Ke2 {[%emt 0:00:00]} Qb2+ {[%emt 0:00:00]} 50. Kd1 {[%emt 0:00:00]} Qb1+ {[%emt 0:00:00]} 51. Ke2 {[%emt 0:00:00]} Qf1+ {[%emt 0:00:00]} 52. Kd2 {[%emt 0:00:00]} Rf2+ {[%emt 0:00:00]} 53. Kc3 {[%emt 0:00:00]} Qe1+ {[%emt 0:00:00] Weighted Error Value: White=1.43/Black=0.82} 0-1

[Event "44th Chess Olympiad Open 2022"]
[Site "Chennai"]
[Date "2022.07.30"]
[Round "2.57"]
[White "Abdulrahman Mohammad, Al Taher"]
[Black "Diop, Wara"]
[Result "1-0"]
[ECO "D25"]
[WhiteElo "2029"]
[BlackElo "1636"]
[Annotator "TA"]
[PlyCount "77"]
[EventDate "2022.07.29"]
[EventType "team-tourn"]
[EventCountry "IND"]
[SourceTitle "playchess.com"]
[Source "ChessBase"]
[SourceQuality "1"]
[WhiteTeam "United Arab Emirates"]
[BlackTeam "Senegal"]
[WhiteTeamCountry "UAE"]
[BlackTeamCountry "SEN"]
[TimeControl "40/5400+30:1800+30"]

{[%evp 10,77,35,42,40,45,40,24,34,0,4,5,1,7,19,16,16,22,30,27,10,20,35,6,4,8,18,4,31,33,30,29,26,26,18,28,66,50,50,47,52,0,0,0,0,0,74,66,144,155,406,406,406,406,406,406,1327,1317,1316,1306,1273,1262,1255,1197,1101,958,29984,29985,29985,29985]} 1. d4 {[%emt 0:00:07]} d5 {[%emt 0:00:13]} 2. c4 {[%emt 0:00:11]} dxc4 {[%emt 0:00:40]} 3. Nf3 {[%emt 0:00:25]} Nf6 {[%emt 0:00:22]} 4. e3 {[%emt 0:00:32]} Bg4 {[%emt 0:03:06]} 5. Bxc4 {[%emt 0:03:22]} e6 {[%emt 0:00:36]} 6. Nc3 {[%emt 0:04:38]} Be7 {[%emt 0:00:58] D25: Queen's Gambit Accepted: 4 e3: sidelines and 4...Bg4.} 7. h3 {[%emt 0:04:02]} Bh5 {[%emt 0:00:21]} 8. O-O {[%emt 0:05:46]} O-O {[%emt 0:00:23] White has an edge.} 9. a3 {[%emt 0:08:07] [#]} c5 $146 {[%emt 0:01:56]} ({Predecessor:} 9... Nbd7 10. Be2 Bg6 11. Nh4 Be4 12. Nxe4 Nxe4 13. Nf3 Ndf6 14. Nd2 c5 15. Nxe4 Nxe4 {1-0 (55) Trofimchuk,V (1835)-Britvin,I St Petersburg 2012}) 10. d5 {[%emt 0:03:29]} exd5 {[%emt 0:07:55]} 11. Nxd5 {[%emt 0:01:17]} Bd6 {[%emt 0:03:14]} 12. Nxf6+ {[%emt 0:11:52]} Qxf6 {[%emt 0:00:54]} 13. Qd5 {[%emt 0:03:31]} Bxf3 {[%emt 0:00:37]} 14. Qxf3 {[%emt 0:00:10]} Qxf3 {[%emt 0:00:16]} 15. gxf3 {[%emt 0:00:02]} Rd8 {[%emt 0:02:16]} 16. Bd2 {[%emt 0:05:40]} Be5 {[%emt 0:02:31][%csl LRb2,LRd2]} 17. Rfd1 {[%emt 0:01:35]} Nc6 {[%emt 0:04:30]} 18. Rab1 {[%emt 0:04:00]} Rd6 {[%emt 0:01:38] Strongly threatening ...Rad8.} (18... Rd7 $5 {[%cal Ra8d8]} 19. Be1 Rxd1 20. Rxd1 Bxb2 $11) 19. Kf1 {[%emt 0:04:23]} Rad8 {[%emt 0:02:55]} 20. Ke2 {[%emt 0:01:20]} Bf6 {[%emt 0:02:58]} 21. f4 {[%emt 0:04:51] Against Ne5} a6 {[%emt 0:00:46]} 22. b4 {[%emt 0:09:08]} b5 {[%emt 0:03:03]} 23. bxc5 {[%emt 0:01:11]} Rxd2+ {[%emt 0:01:26]} 24. Rxd2 {[%emt 0:00:01]} bxc4 {[%emt 0:00:10]} 25. Rb6 {[%emt 0:01:35]} (25. Rxd8+ $14 Bxd8 26. Rd1) 25... Rc8 $11 {[%emt 0:02:54]} 26. Rd6 {[%emt 0:04:40]} Nd8 {[%emt 0:05:04]} 27. Rxa6 {[%emt 0:04:01]} Be7 {[%emt 0:06:02] [#]} ({Don't take} 27... Rxc5 28. Ra8 Kf8 29. Rxf6 $1 (29. Rdxd8+ Bxd8 30. Rxd8+ Ke7 $14) 29... gxf6 30. Rxd8+ Ke7 31. Rd4 $16) (27... c3 $11 28. Ra4 h6) 28. Rd4 $1 $16 {[%emt 0:00:47] White is more active.} c3 {[%emt 0:03:00] [#]} ({Black should try} 28... Rxc5 $14 29. Ra8 Kf8) 29. Rc4 $1 {[%emt 0:01:11]} Rxc5 $2 {[%emt 0:05:16] Loses the game.} (29... Kf8 $16 30. c6 (30. Rxc3 Ne6 $16) 30... Ne6) 30. Rxc5 $18 {[%emt 0:00:05]} Bxc5 {[%emt 0:00:34]} 31. Ra8 {[%emt 0:00:04]} Be7 {[%emt 0:02:17]} 32. a4 {[%emt 0:00:22][%cal Ba3a4,Ba4a5,Ba5a6,Ba6a7][%mdl 32]} f5 {[%emt 0:02:55]} (32... Kf8 $142 33. a5 Ke8) 33. a5 {[%emt 0:00:21]} Kf7 {[%emt 0:00:38]} 34. a6 {[%emt 0:00:09] Hoping for Rc8.} Nc6 {[%emt 0:03:16]} 35. Rc8 {[%emt 0:02:30]} Na7 {[%emt 0:02:22]} 36. Rc7 {[%emt 0:00:12]} Nb5 {[%emt 0:01:37]} 37. Rb7 {[%emt 0:00:21]} Na3 {[%emt 0:02:29]} 38. a7 {[%emt 0:00:49]} c2 {[%emt 0:00:43]} 39. Kd2 {[%emt 0:00:10] Weighted Error Value: White=0.04 (flawless) /Black=0.50} 1-0